[Event "POR-chT 1st Divison 2018"]
[Site "Maia"]
[Date "2018.07.18"]
[Round "4"]
[White "Guerreiro, Nuno"]
[Black "Fernandes, Antonio"]
[Result "0-1"]
[ECO "A05"]
[WhiteElo "2050"]
[BlackElo "2403"]
[Annotator "NA"]
[PlyCount "138"]
[EventDate "2018.07.16"]
[EventType "team-tourn"]
[EventCountry "POR"]
[SourceTitle "playchess.com"]
[Source "ChessBase"]
[SourceQuality "1"]
[TimeControl "5400+30"]

1. Nf3 {[%emt 0:00:00]} Nf6 {[%emt 0:03:24]} 2. g3 {[%emt 0:00:00]} d5 {[%emt 0:02:54]} 3. Bg2 {[%emt 0:00:59]} Bf5 {[%emt 0:00:24]} 4. c4 {[%emt 0:01:00]} dxc4 {[%emt 0:01:52]} 5. Na3 {[%emt 0:03:13]} c6 {[%emt 0:02:06]} 6. Nxc4 {[%emt 0:00:19]} Nbd7 {[%emt 0:00:03] A09: Réti Opening: 1 Nf3 d5 2 c4} 7. O-O {[%emt 0:06:10]} e6 {[%emt 0:00:21]} 8. d3 {[%emt 0:01:20]} Be7 {[%emt 0:00:51] LiveBook: 5 Partien} (8... h6 9. Bd2 Be7 10. Nd4 Bh7 11. Nb3 Nd5 12. Nba5 Qc8 13. e4 N5b6 {½-½ (56) Rozum,I (2606)-Zarubitski,V (2325) Minsk 2017}) 9. Bf4 {[%emt 0:09:34]} Nb6 {[%emt 0:02:15]} 10. Rc1 $146 {[%emt 0:05:43]} ({Predecessor:} 10. Na5 Qc8 11. Nd4 Nfd5 12. Nxf5 exf5 13. Be5 O-O 14. e4 fxe4 15. dxe4 {1-0 (38) Bender,I (2285)-Kovacevic,S (2100) Osijek 2015}) 10... Nxc4 {[%emt 0:16:19]} 11. Rxc4 {[%emt 0:04:18]} O-O {[%emt 0:00:31]} 12. b4 {[%emt 0:09:09]} a5 {[%emt 0:03:46]} 13. a3 {[%emt 0:00:55]} axb4 {[%emt 0:04:23]} 14. axb4 {[%emt 0:02:43]} Nd5 {[%emt 0:00:15]} 15. Bd2 {[%emt 0:02:05]} Nc7 {[%emt 0:04:12]} 16. h4 {[%emt 0:06:33]} f6 {[%emt 0:05:22]} 17. Nd4 {[%emt 0:07:53]} Bg6 {[%emt 0:00:22]} 18. b5 {[%emt 0:00:26]} Bf7 {[%emt 0:00:03]} 19. bxc6 {[%emt 0:02:00]} b5 {[%emt 0:00:22]} 20. Nxb5 $1 {[%emt 0:05:51]} Nxb5 {[%emt 0:00:01]} 21. Bb4 {[%emt 0:04:12]} (21. c7 $15 Nxc7 22. Bxa8 Nxa8 23. Rc6) 21... Nc7 {[%emt 0:02:04]} 22. Bxe7 $17 {[%emt 0:05:08]} Qxe7 {[%emt 0:00:03]} 23. Qc2 {[%emt 0:00:39]} e5 {[%emt 0:18:56]} 24. Ra4 {[%emt 0:00:40]} Rxa4 {[%emt 0:01:41]} 25. Qxa4 {[%emt 0:00:03]} Qc5 {[%emt 0:00:45]} 26. Rb1 {[%emt 0:00:38]} Ra8 {[%emt 0:01:23]} 27. Qd1 {[%emt 0:02:58]} Bd5 {[%emt 0:01:06]} 28. Rc1 {[%emt 0:00:51]} Qd6 {[%emt 0:00:16]} 29. Bh3 {[%emt 0:01:22]} Ra6 {[%emt 0:05:39]} 30. e4 {[%emt 0:00:39]} Be6 {[%emt 0:11:22]} 31. Bxe6+ {[%emt 0:00:20]} Qxe6 {[%emt 0:00:12]} 32. Qc2 {[%emt 0:00:04]} Qd6 {[%emt 0:03:10]} 33. Qc4+ {[%emt 0:03:57]} Kf8 {[%emt 0:00:08]} 34. Kg2 {[%emt 0:00:39]} Rb6 {[%emt 0:05:11]} 35. h5 {[%emt 0:00:31]} Rb4 {[%emt 0:02:07]} 36. Qc2 {[%emt 0:01:04]} Ke7 {[%emt 0:03:06]} 37. Qd1 {[%emt 0:00:18]} Rb8 {[%emt 0:00:33]} 38. Qg4 {[%emt 0:00:10]} Ne6 {[%emt 0:00:18]} 39. Qf5 {[%emt 0:00:37]} h6 {[%emt 0:00:55]} 40. Qf3 {[%emt 0:00:33]} Rc8 {[%emt 0:00:09]} 41. Qe3 {[%emt 0:00:25]} Rxc6 {[%emt 0:00:13]} 42. Qa7+ {[%emt 0:00:31]} Rc7 {[%emt 0:00:07]} 43. Rxc7+ {[%emt 0:00:23]} Qxc7 {[%emt 0:00:01]} 44. Qa3+ {[%emt 0:00:22]} Qd6 {[%emt 0:01:16]} 45. Qa7+ {[%emt 0:00:06]} Kf8 {[%emt 0:01:25]} 46. Qa8+ {[%emt 0:00:17]} Kf7 {[%emt 0:00:22]} 47. Qb7+ {[%emt 0:00:09]} Kf8 {[%emt 0:00:34]} 48. Qc8+ {[%emt 0:00:13]} Nd8 {[%emt 0:00:30]} 49. Qc4 {[%emt 0:00:14]} Qd4 {[%emt 0:00:20]} 50. Qb3 {[%emt 0:00:11]} Ke7 {[%emt 0:00:26]} 51. Qa3+ {[%emt 0:00:18]} Kf7 {[%emt 0:00:53]} 52. Qb3+ {[%emt 0:00:05]} Ne6 {[%emt 0:00:28]} 53. Qb7+ {[%emt 0:00:22]} Kg8 {[%emt 0:00:21]} 54. Qc8+ {[%emt 0:00:18]} Nd8 {[%emt 0:00:11]} 55. Qc2 {[%emt 0:00:28]} Kh7 {[%emt 0:00:17]} 56. Qb3 {[%emt 0:00:25]} Qd7 {[%emt 0:00:12]} 57. Qc4 {[%emt 0:00:28]} Ne6 {[%emt 0:00:13]} 58. Qc3 {[%emt 0:01:00]} Qd6 {[%emt 0:01:00]} 59. Qc8 {[%emt 0:00:32]} Nf8 {[%emt 0:01:02]} 60. Qe8 {[%emt 0:00:42]} Kg8 {[%emt 0:00:16]} 61. Qb5 {[%emt 0:00:07]} Qd7 {[%emt 0:00:25]} 62. Qb3+ {[%emt 0:00:36]} Qf7 {[%emt 0:00:42]} 63. Qd1 {[%emt 0:00:05]} Ne6 {[%emt 0:00:11]} 64. Qc2 {[%emt 0:01:10]} Qxh5 {[%emt 0:00:21]} 65. Qc8+ {[%emt 0:00:07]} Nf8 {[%emt 0:00:01]} 66. Qd8 {[%emt 0:00:14]} Qf7 {[%emt 0:00:07]} 67. Qa5 {[%emt 0:00:34]} Qd7 {[%emt 0:00:07]} 68. Qa6 {[%emt 0:00:08]} Ne6 {[%emt 0:00:08]} 69. Qb5 {[%emt 0:00:19]} Qxb5 {[%emt 0:00:02]} 0-1

[Event "POR-chT 1st Divison 2018"]
[Site "Maia"]
[Date "2018.07.19"]
[Round "5"]
[White "Padeiro, Jose"]
[Black "Guerreiro, Nuno"]
[Result "0-1"]
[ECO "B23"]
[WhiteElo "2284"]
[BlackElo "2050"]
[Annotator "RC"]
[PlyCount "68"]
[EventDate "2018.07.16"]
[EventType "team-tourn"]
[EventCountry "POR"]
[SourceTitle "playchess.com"]
[Source "ChessBase"]
[SourceQuality "1"]
[TimeControl "5400+30"]

1. e4 {[%emt 0:00:00]} c5 {[%emt 0:03:02]} 2. Nc3 {[%emt 0:00:00]} g6 {[%emt 0:00:21]} 3. d4 {[%emt 0:00:06]} cxd4 {[%emt 0:01:07]} 4. Qxd4 {[%emt 0:00:06]} Nf6 {[%emt 0:00:15]} 5. Bb5 {[%emt 0:00:13]} Nc6 {[%emt 0:05:50]} 6. Bxc6 {[%emt 0:00:22]} bxc6 {[%emt 0:00:21]} 7. e5 {[%emt 0:05:19]} Nh5 {[%emt 0:00:44]} 8. Nf3 {[%emt 0:02:44]} Ng7 {[%emt 0:01:34]} 9. O-O {[%emt 0:03:33]} Ne6 {[%emt 0:01:15]} 10. Qh4 {[%emt 0:01:41]} h6 {[%emt 0:01:41]} 11. Ne4 {[%emt 0:16:34]} Bg7 {[%emt 0:01:27]} 12. Re1 {[%emt 0:06:43]} Rb8 {[%emt 0:07:18]} 13. b3 {[%emt 0:03:51]} d5 {[%emt 0:04:53]} 14. exd6 {[%emt 0:05:12]} exd6 {[%emt 0:08:05]} 15. Qg3 {[%emt 0:05:01]} O-O {[%emt 0:07:01]} 16. Ba3 {[%emt 0:07:55]} c5 {[%emt 0:03:38]} 17. Nxd6 {[%emt 0:06:56]} Bxa1 {[%emt 0:07:11]} 18. Rxa1 {[%emt 0:00:30]} Rb6 {[%emt 0:02:24]} 19. Nc4 {[%emt 0:02:35]} Ra6 {[%emt 0:02:17]} 20. Re1 {[%emt 0:09:17]} Nd4 {[%emt 0:02:26]} 21. Bxc5 {[%emt 0:05:54]} Re6 {[%emt 0:02:18]} 22. Rxe6 {[%emt 0:02:00]} Nxe6 {[%emt 0:00:52]} 23. Bd6 {[%emt 0:00:25]} Ba6 {[%emt 0:02:20]} 24. h4 {[%emt 0:01:01]} Re8 {[%emt 0:02:09]} 25. Ne3 {[%emt 0:02:45]} Ng7 {[%emt 0:04:52]} 26. Be5 {[%emt 0:02:53]} Nh5 {[%emt 0:01:40]} 27. Qh2 {[%emt 0:05:09]} Bb7 {[%emt 0:07:52]} 28. Bc7 {[%emt 0:03:04]} Qf6 {[%emt 0:01:53]} 29. Qd6 {[%emt 0:01:01]} Qa1+ {[%emt 0:02:11]} 30. Kh2 {[%emt 0:00:06]} Bxf3 {[%emt 0:01:31]} 31. gxf3 {[%emt 0:00:01]} Qe1 {[%emt 0:02:51]} 32. Ng4 {[%emt 0:01:17]} Kh7 {[%emt 0:03:13]} 33. Qd5 {[%emt 0:01:10]} Qe7 {[%emt 0:01:09]} 34. Bg3 {[%emt 0:00:09]} f5 {[%emt 0:01:21]} 0-1

[Event "POR-chT 1st Divison 2018"]
[Site "Maia"]
[Date "2018.07.19"]
[Round "5"]
[White "Ribeiro, Fernando"]
[Black "Carneiro, Carlos"]
[Result "0-1"]
[ECO "B27"]
[WhiteElo "2165"]
[BlackElo "2094"]
[Annotator "NA RC"]
[PlyCount "32"]
[EventDate "2018.07.16"]
[EventType "team-tourn"]
[EventCountry "POR"]
[SourceTitle "playchess.com"]
[Source "ChessBase"]
[SourceQuality "1"]
[TimeControl "5400+30"]

1. e4 {[%emt 0:03:41]} c5 {[%emt 0:00:00]} 2. Nf3 {[%emt 0:00:13]} g6 {[%emt 0:00:00]} 3. d4 {[%emt 0:04:10]} cxd4 {[%emt 0:00:00]} 4. Qxd4 {[%emt 0:00:29]} Nf6 {[%emt 0:00:00]} 5. Qa4 {[%emt 0:04:47]} Nc6 {[%emt 0:02:34]} 6. Nc3 {[%emt 0:00:48]} Bg7 {[%emt 0:12:47]} 7. e5 {[%emt 0:01:29]} Ng8 {[%emt 0:03:25]} 8. Bf4 {[%emt 0:00:40]} f6 {[%emt 0:05:39]} 9. exf6 {[%emt 0:02:41]} Nxf6 {[%emt 0:00:55]} 10. O-O-O {[%emt 0:00:40]} O-O {[%emt 0:08:33]} 11. Bc4+ {[%emt 0:00:52]} Kh8 {[%emt 0:00:06]} 12. Ng5 $11 {[%emt 0:00:40]} (12. Rhe1 $16) 12... Ng4 {[%emt 0:17:08]} 13. Bg3 {[%emt 0:23:55]} Bh6 {[%emt 0:26:16]} 14. f4 {[%emt 0:09:34]} e5 {[%emt 0:03:56]} 15. Bh4 {[%emt 0:08:48]} Rxf4 {[%emt 0:01:08]} 16. Nf7+ {[%emt 0:00:25]} Rxf7+ {[%emt 0:00:11]} 0-1

[Event "POR-chT 1st Divison 2018"]
[Site "Maia"]
[Date "2018.07.20"]
[Round "6"]
[White "Ribeiro, Fernando"]
[Black "Turcer, Dusan"]
[Result "1-0"]
[ECO "B31"]
[WhiteElo "2165"]
[BlackElo "2039"]
[Annotator "RC"]
[PlyCount "125"]
[EventDate "2018.07.16"]
[EventType "team-tourn"]
[EventCountry "POR"]
[SourceTitle "playchess.com"]
[Source "ChessBase"]
[SourceQuality "1"]
[TimeControl "5400+30"]

1. e4 {[%emt 0:00:00]} c5 {[%emt 0:00:00]} 2. Nf3 {[%emt 0:00:00]} Nc6 {[%emt 0:00:57]} 3. Bb5 {[%emt 0:00:09]} g6 {[%emt 0:00:19]} 4. Bxc6 {[%emt 0:00:07]} dxc6 {[%emt 0:00:13]} 5. d3 {[%emt 0:00:25]} Bg7 {[%emt 0:00:10]} 6. Nc3 {[%emt 0:00:15]} Nf6 {[%emt 0:00:15]} 7. h3 {[%emt 0:00:14]} O-O {[%emt 0:00:20]} 8. Be3 {[%emt 0:00:20]} b6 {[%emt 0:01:08]} 9. Qd2 {[%emt 0:00:15]} Re8 {[%emt 0:08:37]} 10. O-O {[%emt 0:09:47]} e5 {[%emt 0:00:42]} 11. Nh2 {[%emt 0:10:21]} Be6 {[%emt 0:27:23]} 12. f4 {[%emt 0:00:52]} exf4 {[%emt 0:00:06]} 13. Bxf4 {[%emt 0:00:13]} Nd7 {[%emt 0:00:56]} 14. Nf3 {[%emt 0:00:34]} Nf8 {[%emt 0:00:42]} 15. Bh6 {[%emt 0:06:22]} Bh8 {[%emt 0:01:50]} 16. Rae1 {[%emt 0:06:04]} a5 {[%emt 0:04:32]} 17. a4 {[%emt 0:00:30]} Ra7 {[%emt 0:00:20]} 18. e5 {[%emt 0:09:00]} Bd5 {[%emt 0:03:16]} 19. Bg5 {[%emt 0:02:41]} Qc8 {[%emt 0:11:32]} 20. Ne4 {[%emt 0:02:15]} Bxe4 {[%emt 0:00:14]} 21. Rxe4 {[%emt 0:00:11]} Bg7 {[%emt 0:22:11]} 22. Bf6 {[%emt 0:06:14]} Bxf6 {[%emt 0:13:40]} 23. exf6 {[%emt 0:00:22]} Rxe4 {[%emt 0:00:02]} 24. Qh6 {[%emt 0:07:46]} Ne6 {[%emt 0:00:05]} 25. Ng5 {[%emt 0:01:09]} Rh4 {[%emt 0:00:12]} 26. Qxh4 {[%emt 0:00:02]} Nxg5 {[%emt 0:02:12]} 27. Qxg5 {[%emt 0:00:07]} Qf8 {[%emt 0:00:11]} 28. Re1 {[%emt 0:02:54]} h6 {[%emt 0:00:33]} 29. Qe3 {[%emt 0:00:24]} Kh7 {[%emt 0:00:35]} 30. Qe8 {[%emt 0:00:27]} Ra8 {[%emt 0:00:54]} 31. Qxc6 {[%emt 0:00:45]} Rc8 {[%emt 0:00:04]} 32. Qxb6 {[%emt 0:02:24]} Rb8 {[%emt 0:00:36]} 33. Qxa5 {[%emt 0:00:06]} Rxb2 {[%emt 0:00:33]} 34. Qc3 {[%emt 0:03:27]} Rb4 {[%emt 0:00:37]} 35. a5 {[%emt 0:02:47]} h5 {[%emt 0:00:47]} 36. a6 {[%emt 0:01:48]} Ra4 {[%emt 0:00:29]} 37. Ra1 {[%emt 0:00:14]} Qe8 {[%emt 0:00:12]} 38. Rxa4 {[%emt 0:05:36]} Qxa4 {[%emt 0:00:13]} 39. Qxc5 {[%emt 0:01:22]} Qxa6 {[%emt 0:00:39]} 40. Qd4 {[%emt 0:02:40]} Qe6 {[%emt 0:00:15]} 41. Kh2 {[%emt 0:01:18]} Qc8 {[%emt 0:00:46]} 42. Qc4 {[%emt 0:02:16]} Qb8+ {[%emt 0:00:31]} 43. g3 {[%emt 0:00:35]} Qa7 {[%emt 0:00:31]} 44. d4 {[%emt 0:00:31]} g5 {[%emt 0:00:48]} 45. Qd3+ {[%emt 0:00:33]} Kh6 {[%emt 0:00:19]} 46. Qd2 {[%emt 0:01:57]} Kg6 {[%emt 0:00:14]} 47. d5 {[%emt 0:00:21]} Kxf6 {[%emt 0:00:39]} 48. d6 {[%emt 0:00:39]} h4 {[%emt 0:00:47]} 49. gxh4 {[%emt 0:00:58]} gxh4 {[%emt 0:00:16]} 50. d7 {[%emt 0:00:35]} Qc7+ {[%emt 0:00:34]} 51. Kh1 {[%emt 0:00:10]} Qd8 {[%emt 0:00:43]} 52. Qd6+ {[%emt 0:00:22]} Kf5 {[%emt 0:00:17]} 53. c4 {[%emt 0:00:39]} Kg5 {[%emt 0:00:55]} 54. Qe5+ {[%emt 0:00:56]} Kg6 {[%emt 0:00:26]} 55. Qe8 {[%emt 0:00:12]} Qf6 {[%emt 0:00:26]} 56. Qe4+ {[%emt 0:00:29]} Kg7 {[%emt 0:00:09]} 57. Qd3 {[%emt 0:01:52]} Qa1+ {[%emt 0:00:22]} 58. Kg2 {[%emt 0:00:19]} Qa8+ {[%emt 0:00:23]} 59. Kf2 {[%emt 0:00:55]} Qd8 {[%emt 0:01:05]} 60. Qd4+ {[%emt 0:00:28]} Kg6 {[%emt 0:00:27]} 61. c5 {[%emt 0:00:30]} Kf5 {[%emt 0:00:28]} 62. c6 {[%emt 0:01:13]} Ke6 {[%emt 0:00:07]} 63. c7 {[%emt 0:02:26] Kd5} 1-0

[Event "POR-chT 1st Divison 2018"]
[Site "Maia"]
[Date "2018.07.20"]
[Round "7"]
[White "Santos Latasa, Jaime"]
[Black "Neves, Pedro"]
[Result "1-0"]
[ECO "C70"]
[WhiteElo "2576"]
[BlackElo "2236"]
[Annotator "ChessBase"]
[PlyCount "75"]
[EventDate "2018.07.16"]
[EventType "team-tourn"]
[EventCountry "POR"]
[SourceTitle "playchess.com"]
[Source "ChessBase"]
[SourceQuality "1"]
[TimeControl "5400+30"]

1. e4 {[%emt 0:00:38]} e5 {[%emt 0:01:19]} 2. Nf3 {[%emt 0:00:06]} Nc6 {[%emt 0:00:07]} 3. Bb5 {[%emt 0:00:03]} a6 {[%emt 0:00:08]} 4. Ba4 {[%emt 0:00:03]} Nge7 {[%emt 0:00:18]} 5. Nc3 {[%emt 0:01:37]} g6 {[%emt 0:05:11]} 6. d4 {[%emt 0:00:41]} exd4 {[%emt 0:00:48]} 7. Nd5 {[%emt 0:00:29]} Nxd5 {[%emt 0:03:47]} 8. exd5 {[%emt 0:00:20]} Qe7+ {[%emt 0:00:08]} 9. Kf1 {[%emt 0:00:33]} Ne5 {[%emt 0:17:57]} 10. Qxd4 {[%emt 0:08:42]} f6 {[%emt 0:05:59]} 11. Bf4 {[%emt 0:01:03]} Bg7 {[%emt 0:08:51]} 12. Re1 {[%emt 0:00:15]} O-O {[%emt 0:03:30]} 13. Nxe5 {[%emt 0:02:00]} fxe5 {[%emt 0:00:40]} 14. Bxe5 {[%emt 0:00:06]} d6 {[%emt 0:12:48]} 15. Bxg7 {[%emt 0:00:42]} Qxg7 {[%emt 0:00:04]} 16. Qxg7+ {[%emt 0:00:43]} Kxg7 {[%emt 0:00:34]} 17. f3 {[%emt 0:00:11]} b5 {[%emt 0:12:46]} 18. Bb3 {[%emt 0:00:30]} Bb7 {[%emt 0:00:17]} 19. Kf2 {[%emt 0:00:13]} Rae8 {[%emt 0:00:57]} 20. Rxe8 {[%emt 0:00:52]} Rxe8 {[%emt 0:00:06]} 21. Rd1 {[%emt 0:00:07]} Kf6 {[%emt 0:01:10]} 22. a4 {[%emt 0:01:53]} bxa4 {[%emt 0:08:16]} 23. Bxa4 {[%emt 0:00:21]} Re5 {[%emt 0:00:23]} 24. c4 {[%emt 0:00:23]} Bc8 {[%emt 0:01:14]} 25. Rd3 {[%emt 0:00:26]} g5 {[%emt 0:00:48]} 26. Bd1 {[%emt 0:00:58]} h6 {[%emt 0:04:24]} 27. Rb3 {[%emt 0:00:21]} Ke7 {[%emt 0:03:06]} 28. Rb8 {[%emt 0:00:38]} Bf5 {[%emt 0:00:50]} 29. Ra8 {[%emt 0:00:32]} c6 {[%emt 0:01:17]} 30. Ra7+ {[%emt 0:00:15]} Kd8 {[%emt 0:02:00]} 31. Rxa6 {[%emt 0:00:13]} cxd5 {[%emt 0:00:17]} 32. Rxd6+ {[%emt 0:00:11]} Kc7 {[%emt 0:00:12]} 33. Rxd5 {[%emt 0:00:05]} Rxd5 {[%emt 0:00:08]} 34. cxd5 {[%emt 0:00:04]} Kd6 {[%emt 0:00:06]} 35. Bb3 {[%emt 0:00:11]} Kc5 {[%emt 0:00:28]} 36. Ke3 {[%emt 0:00:17]} Bb1 {[%emt 0:00:19]} 37. Kd2 {[%emt 0:00:34]} Bf5 {[%emt 0:00:38]} 38. Kc3 {[%emt 0:00:07] Kxd5} 1-0

[Event "POR-chT 1st Divison 2018"]
[Site "Maia"]
[Date "2018.07.20"]
[Round "7"]
[White "Asis Gargatagli, Hipolito"]
[Black "Cuenca Jimenez, Jose Fernando"]
[Result "0-1"]
[ECO "C77"]
[WhiteElo "2538"]
[BlackElo "2513"]
[Annotator "ChessBase"]
[PlyCount "64"]
[EventDate "2018.07.16"]
[EventType "team-tourn"]
[EventCountry "POR"]
[SourceTitle "playchess.com"]
[Source "ChessBase"]
[SourceQuality "1"]
[TimeControl "5400+30"]

1. e4 {[%emt 0:00:00]} e5 {[%emt 0:00:00]} 2. Nf3 {[%emt 0:00:00]} Nc6 {[%emt 0:00:10]} 3. Bb5 {[%emt 0:00:41]} a6 {[%emt 0:01:17]} 4. Ba4 {[%emt 0:00:05]} Nf6 {[%emt 0:00:49]} 5. d3 {[%emt 0:00:14]} d6 {[%emt 0:02:25]} 6. c3 {[%emt 0:00:36]} g6 {[%emt 0:00:28]} 7. O-O {[%emt 0:07:18]} Bg7 {[%emt 0:00:18]} 8. Re1 {[%emt 0:01:55]} O-O {[%emt 0:01:20]} 9. Nbd2 {[%emt 0:03:37]} b5 {[%emt 0:00:44]} 10. Bc2 {[%emt 0:01:20]} Bb7 {[%emt 0:09:13]} 11. a4 {[%emt 0:08:16]} b4 {[%emt 0:07:54]} 12. a5 {[%emt 0:06:58]} Rb8 {[%emt 0:20:22]} 13. Nf1 {[%emt 0:15:50]} d5 {[%emt 0:05:14]} 14. Bg5 {[%emt 0:03:25]} h6 {[%emt 0:07:26]} 15. Bh4 {[%emt 0:06:40]} dxe4 {[%emt 0:09:03]} 16. dxe4 {[%emt 0:00:52]} Qxd1 {[%emt 0:01:40]} 17. Rexd1 {[%emt 0:00:17]} Rfd8 {[%emt 0:11:19]} 18. Rxd8+ {[%emt 0:11:03]} Nxd8 {[%emt 0:01:55]} 19. N1d2 {[%emt 0:02:29]} Nc6 {[%emt 0:02:34]} 20. Nc4 {[%emt 0:01:58]} Nd7 {[%emt 0:07:52]} 21. Rd1 {[%emt 0:13:08]} Nc5 {[%emt 0:00:05]} 22. Rd5 {[%emt 0:00:14]} b3 {[%emt 0:01:24]} 23. Bb1 {[%emt 0:00:19]} Bf8 {[%emt 0:01:34]} 24. Bf6 {[%emt 0:05:29]} Ba8 25. h4 {[%emt 0:03:21]} Rb5 {[%emt 0:03:54]} 26. Nfxe5 {[%emt 0:00:15]} Nxe5 {[%emt 0:02:01]} 27. Rxe5 {[%emt 0:00:16]} Bc6 {[%emt 0:00:35]} 28. f4 {[%emt 0:05:22]} Nd7 {[%emt 0:00:19]} 29. Bd8 {[%emt 0:00:31]} Nxe5 {[%emt 0:00:23]} 30. Nxe5 {[%emt 0:00:02]} Rxa5 {[%emt 0:00:26]} 31. Bd3 {[%emt 0:00:02]} Bb5 {[%emt 0:01:12]} 32. c4 {[%emt 0:00:03]} Be8 {[%emt 0:00:12]} 0-1

[Event "POR-chT 1st Divison 2018"]
[Site "Maia"]
[Date "2018.07.20"]
[Round "7"]
[White "Nagy, Gabor"]
[Black "Ribeiro, Fernando"]
[Result "1/2-1/2"]
[ECO "B56"]
[WhiteElo "2474"]
[BlackElo "2165"]
[Annotator "ChessBase"]
[PlyCount "106"]
[EventDate "2018.07.16"]
[EventType "team-tourn"]
[EventCountry "POR"]
[SourceTitle "playchess.com"]
[Source "ChessBase"]
[SourceQuality "1"]
[TimeControl "5400+30"]

1. e4 {[%emt 0:00:00]} c5 {[%emt 0:02:05]} 2. Nf3 {[%emt 0:00:00]} d6 {[%emt 0:00:29]} 3. d4 {[%emt 0:00:10]} cxd4 {[%emt 0:00:09]} 4. Nxd4 {[%emt 0:00:40]} Nf6 {[%emt 0:00:13]} 5. Nc3 {[%emt 0:00:16]} e5 {[%emt 0:01:20]} 6. Bb5+ {[%emt 0:00:27]} Bd7 {[%emt 0:00:44]} 7. Bxd7+ {[%emt 0:00:46]} Nbxd7 {[%emt 0:00:50]} 8. Nf5 {[%emt 0:00:32]} Qb6 {[%emt 0:02:25]} 9. O-O {[%emt 0:02:28]} Rc8 {[%emt 0:01:30]} 10. a4 {[%emt 0:02:53]} Rxc3 {[%emt 0:29:05]} 11. bxc3 {[%emt 0:00:13]} Nxe4 {[%emt 0:00:04]} 12. Ne3 {[%emt 0:04:40]} Nxc3 {[%emt 0:10:28]} 13. Qd3 {[%emt 0:00:19]} Qd4 {[%emt 0:02:29]} 14. Qxd4 {[%emt 0:14:03]} Ne2+ {[%emt 0:01:24]} 15. Kh1 {[%emt 0:00:35]} Nxd4 {[%emt 0:00:03]} 16. Ba3 {[%emt 0:00:34]} Kd8 {[%emt 0:05:35]} 17. Rfd1 {[%emt 0:03:17]} Kc7 {[%emt 0:01:19]} 18. Rd2 {[%emt 0:00:30]} Nf6 {[%emt 0:02:18]} 19. f3 {[%emt 0:00:32]} d5 {[%emt 0:15:05]} 20. Bb2 {[%emt 0:00:30]} Bc5 {[%emt 0:00:31]} 21. Rad1 {[%emt 0:02:27]} Kc6 {[%emt 0:06:20]} 22. Rd3 {[%emt 0:00:22]} Re8 {[%emt 0:06:23]} 23. c3 {[%emt 0:03:12]} e4 {[%emt 0:00:57]} 24. fxe4 {[%emt 0:00:43]} Ne2 {[%emt 0:06:08]} 25. exd5+ {[%emt 0:05:46]} Kd7 {[%emt 0:00:01]} 26. Nf5 {[%emt 0:02:18]} Ng4 {[%emt 0:00:40]} 27. Rf3 {[%emt 0:00:10]} Nf2+ {[%emt 0:00:29]} 28. Rxf2 {[%emt 0:00:06]} Bxf2 {[%emt 0:00:01]} 29. Rf1 {[%emt 0:00:19]} Nf4 {[%emt 0:00:45]} 30. c4 {[%emt 0:02:28]} g6 {[%emt 0:00:20]} 31. Bd4 {[%emt 0:04:16]} Bxd4 {[%emt 0:00:52]} 32. Nxd4 {[%emt 0:00:02]} Re4 {[%emt 0:00:12]} 33. Nf3 {[%emt 0:00:35]} f6 {[%emt 0:00:14]} 34. g3 {[%emt 0:04:11]} Nd3 {[%emt 0:00:35]} 35. Nd2 {[%emt 0:02:28]} Re2 {[%emt 0:00:00]} 36. Nb3 {[%emt 0:00:09]} Nf2+ {[%emt 0:00:18]} 37. Kg2 {[%emt 0:00:27]} Nd3+ {[%emt 0:00:22]} 38. Kg1 {[%emt 0:01:22]} f5 {[%emt 0:00:08]} 39. Rd1 {[%emt 0:00:09]} Nb2 {[%emt 0:03:05]} 40. Nc5+ {[%emt 0:01:25]} Kc8 {[%emt 0:00:20]} 41. Rc1 {[%emt 0:02:30]} b6 {[%emt 0:00:01]} 42. Ne6 {[%emt 0:00:02]} Nxa4 {[%emt 0:01:01]} 43. Ra1 {[%emt 0:01:34]} Nc5 {[%emt 0:00:39]} 44. Nxc5 {[%emt 0:04:06]} bxc5 {[%emt 0:00:02]} 45. Ra5 {[%emt 0:00:10]} Rc2 {[%emt 0:00:23]} 46. Rxc5+ {[%emt 0:00:07]} Kd7 {[%emt 0:00:09]} 47. h4 {[%emt 0:05:32]} h6 {[%emt 0:00:14]} 48. Ra5 {[%emt 0:05:44]} Rxc4 {[%emt 0:00:29]} 49. Rxa7+ {[%emt 0:00:05]} Ke8 {[%emt 0:00:32]} 50. Kf2 {[%emt 0:01:05]} h5 {[%emt 0:00:14]} 51. Rg7 {[%emt 0:00:35]} Rg4 {[%emt 0:00:09]} 52. d6 {[%emt 0:00:25]} f4 {[%emt 0:00:11]} 53. gxf4 {[%emt 0:00:44]} Rxf4+ {[%emt 0:00:01]} 1/2-1/2

[Event "POR-chT 1st Divison 2018"]
[Site "Maia"]
[Date "2018.07.20"]
[Round "7"]
[White "Vassallo Barroche, Mauricio"]
[Black "Martinez Duany, Lelys Stanley"]
[Result "1/2-1/2"]
[ECO "A48"]
[WhiteElo "2386"]
[BlackElo "2528"]
[Annotator "ChessBase"]
[PlyCount "83"]
[EventDate "2018.07.16"]
[EventType "team-tourn"]
[EventCountry "POR"]
[SourceTitle "playchess.com"]
[Source "ChessBase"]
[SourceQuality "1"]
[TimeControl "5400+30"]

1. d4 {[%emt 0:00:00]} Nf6 {[%emt 0:00:00]} 2. Nf3 {[%emt 0:00:53]} g6 {[%emt 0:00:28]} 3. Bg5 {[%emt 0:02:23]} Bg7 {[%emt 0:00:28]} 4. c3 {[%emt 0:01:11]} d5 {[%emt 0:01:14]} 5. Nbd2 {[%emt 0:00:21]} Nbd7 {[%emt 0:00:08]} 6. e3 {[%emt 0:00:26]} c5 {[%emt 0:00:07]} 7. Be2 {[%emt 0:00:51]} O-O {[%emt 0:00:14]} 8. O-O {[%emt 0:00:08]} b6 {[%emt 0:00:04]} 9. a4 {[%emt 0:10:18]} a6 {[%emt 0:00:09]} 10. h3 {[%emt 0:00:34]} Bb7 {[%emt 0:02:03]} 11. Qb3 {[%emt 0:08:10]} Re8 {[%emt 0:02:49]} 12. Bf4 {[%emt 0:05:53]} c4 {[%emt 0:03:11]} 13. Qc2 {[%emt 0:02:38]} b5 {[%emt 0:01:22]} 14. Ne5 {[%emt 0:02:53]} Nxe5 {[%emt 0:05:22]} 15. Bxe5 {[%emt 0:01:20]} Qb6 {[%emt 0:00:19]} 16. b3 {[%emt 0:04:10]} Qc6 {[%emt 0:12:35]} 17. Bf3 {[%emt 0:03:36]} Ne4 {[%emt 0:07:54]} 18. bxc4 {[%emt 0:05:13]} Bxe5 {[%emt 0:02:30]} 19. cxd5 {[%emt 0:02:44]} Qxc3 {[%emt 0:00:37]} 20. Bxe4 {[%emt 0:01:08]} Qxc2 {[%emt 0:00:35]} 21. Bxc2 {[%emt 0:00:04]} Bd6 {[%emt 0:02:09]} 22. axb5 {[%emt 0:00:42]} axb5 {[%emt 0:00:06]} 23. Bb3 {[%emt 0:00:06]} f5 {[%emt 0:01:45]} 24. g3 {[%emt 0:07:58]} Kg7 {[%emt 0:00:16]} 25. Nf3 {[%emt 0:01:56]} Rec8 {[%emt 0:00:39]} 26. Ng5 {[%emt 0:01:57]} b4 {[%emt 0:01:13]} 27. Ne6+ {[%emt 0:00:14]} Kf6 {[%emt 0:00:10]} 28. Rxa8 {[%emt 0:01:54]} Rxa8 {[%emt 0:05:22]} 29. Nc5 {[%emt 0:05:48]} Bc8 {[%emt 0:05:57]} 30. Rb1 {[%emt 0:06:25]} g5 {[%emt 0:06:07]} 31. f4 {[%emt 0:01:51]} Ra3 {[%emt 0:02:27]} 32. Kf2 {[%emt 0:00:13]} Ba6 {[%emt 0:01:23]} 33. h4 {[%emt 0:05:11]} gxh4 {[%emt 0:04:11]} 34. gxh4 {[%emt 0:00:01]} Bb5 {[%emt 0:00:41]} 35. Kf3 {[%emt 0:01:54]} Be8 {[%emt 0:00:24]} 36. Bc4 {[%emt 0:01:41]} Rc3 {[%emt 0:04:55]} 37. Rxb4 {[%emt 0:00:20]} Bh5+ {[%emt 0:00:17]} 38. Kf2 {[%emt 0:00:06]} Rc2+ {[%emt 0:00:30]} 39. Kg3 {[%emt 0:01:21]} Rc3 {[%emt 0:01:39]} 40. Kf2 {[%emt 0:00:05]} Rc2+ {[%emt 0:02:25]} 41. Kg3 {[%emt 0:04:09]} Rc3 {[%emt 0:07:27]} 42. Kf2 {[%emt 0:00:50] Ke5} 1/2-1/2